bitfinex-derivatives/quotes_BTCF0:USTF0_20250728
["timestamp","ask_amount","ask_price","bid_price","bid_amount"]
[1753734672306,1.13156761,117720.0,117710.0,0.410882]
[1753734672707,0.80419527,117720.0,117710.0,0.410882]
[1753734672908,0.80519527,117720.0,117710.0,0.410882]
[1753734673113,1.13256761,117720.0,117710.0,0.86936]
[1753734673304,1.13256761,117720.0,117710.0,1.0392756]
[1753734673505,1.13256761,117720.0,117710.0,1.1136456]
[1753734673707,1.13456761,117720.0,117710.0,1.1136456]
[1753734673906,1.13456761,117720.0,117710.0,0.94373]
[1753734674403,0.40737,117710.0,117700.0,0.25095183]
[1753734674714,0.90465814,117710.0,117700.0,0.71980183]
[1753734675309,0.90465814,117710.0,117700.0,0.80991183]
[1753734675508,0.90465814,117710.0,117700.0,0.88428183]
[1753734675710,0.90565814,117710.0,117700.0,0.88428183]
[1753734676008,0.90565814,117710.0,117700.0,0.89128183]
[1753734676808,0.90565814,117710.0,117700.0,0.02444183]
[1753734677002,0.5063276,117690.0,117680.0,0.01695627]
[1753734677203,0.92338479,117690.0,117680.0,0.71879627]
[1753734677514,0.92338479,117690.0,117680.0,1.00626837]
[1753734677715,0.92338479,117690.0,117680.0,1.08507837]
[1753734678116,0.59601245,117690.0,117680.0,1.11552837]
[1753734678716,0.61297674,117690.0,117680.0,1.11552837]
[1753734678917,0.61297674,117690.0,117680.0,1.09107837]
[1753734679119,0.61297674,117690.0,117680.0,1.11141493]
[1753734679417,0.59601245,117690.0,117680.0,1.11240708]
[1753734680617,0.92338479,117690.0,117680.0,1.11240708]
[1753734681119,0.59601245,117690.0,117680.0,1.11240708]
[1753734681720,0.92338479,117690.0,117680.0,1.11240708]
[1753734682218,0.92338479,117690.0,117680.0,1.09207837]
[1753734685720,0.59601245,117690.0,117680.0,1.09207837]
[1753734686823,0.59601245,117690.0,117680.0,1.11652837]
[1753734687120,0.61215091,117690.0,117680.0,1.11652837]
[1753734688317,0.61215091,117690.0,117680.0,0.39023837]
[1753734688521,0.61215091,117690.0,117680.0,1.15878837]
[1753734689220,0.93952325,117690.0,117680.0,1.15878837]
[1753734689615,0.93952325,117690.0,117680.0,0.24088837]
[1753734689811,0.93952325,117690.0,117680.0,0.89471837]
[1753734690220,0.93952325,117690.0,117680.0,0.93696837]
[1753734690421,0.93952325,117690.0,117680.0,0.98565837]
[1753734690619,0.93952325,117690.0,117680.0,1.05969837]
[1753734691024,0.93952325,117690.0,117680.0,1.05869837]
[1753734691323,0.93952325,117690.0,117680.0,0.89371837]
[1753734691825,0.93952325,117690.0,117680.0,1.05369837]
[1753734692026,0.93952325,117690.0,117680.0,1.08484837]
[1753734694228,0.93952325,117690.0,117680.0,1.10522959]
[1753734694933,0.93952325,117690.0,117680.0,1.08484837]
[1753734696131,0.76957565,117690.0,117680.0,1.08484837]
[1753734696324,0.41276871,117690.0,117680.0,1.43667071]
[1753734696627,0.54071871,117690.0,117680.0,1.43667071]
[1753734696821,0.44043331,117690.0,117680.0,1.43667071]
[1753734697134,0.61037871,117690.0,117680.0,1.10929837]
[1753734697434,0.44043331,117690.0,117680.0,1.10929837]
[1753734697728,0.08413331,117690.0,117680.0,1.12970719]
[1753734698332,0.41340871,117690.0,117680.0,1.12970719]
[1753734698531,0.54317871,117690.0,117680.0,1.12970719]
[1753734698834,0.61283871,117690.0,117680.0,1.12970719]
[1753734699132,0.44289331,117690.0,117680.0,1.12970719]
[1753734700227,0.61283871,117690.0,117680.0,1.45707953]
[1753734700427,0.61283871,117690.0,117680.0,0.82386953]
[1753734700627,0.61283871,117690.0,117680.0,1.19605719]
[1753734701129,0.44289331,117690.0,117680.0,1.19605719]
[1753734701429,0.03483331,117690.0,117680.0,1.52342953]
[1753734702631,0.25304861,117690.0,117680.0,1.19581719]
[1753734703734,0.08310331,117690.0,117680.0,1.19581719]
[1753734704634,0.25304851,117690.0,117680.0,1.19581719]
[1753734705833,0.08310331,117690.0,117680.0,1.19581719]
[1753734707937,0.25304861,117690.0,117680.0,1.19581719]
[1753734708134,0.25304861,117690.0,117680.0,1.52318953]
[1753734708637,0.08310331,117690.0,117680.0,1.52318953]
[1753734710338,0.25304861,117690.0,117680.0,1.52318953]
[1753734711241,0.08310331,117690.0,117680.0,1.52318953]
[1753734712438,0.25305021,117690.0,117680.0,1.52318953]
[1753734713740,0.53049021,117690.0,117680.0,1.52318953]
[1753734714340,0.92851255,117690.0,117680.0,1.09779719]
[1753734715739,0.60114021,117690.0,117680.0,1.09779719]
[1753734717136,0.60114021,117690.0,117680.0,0.48434719]
[1753734717335,0.60114021,117690.0,117680.0,1.18270719]
[1753734717535,0.92851255,117690.0,117680.0,1.15825719]
[1753734719043,0.92851255,117690.0,117680.0,1.18270719]
[1753734719533,0.60114021,117690.0,117680.0,1.18270719]
[1753734724246,0.60114021,117690.0,117680.0,1.15825719]
[1753734724548,0.60114021,117690.0,117680.0,1.18270719]
[1753734727047,0.43119331,117690.0,117680.0,1.51007953]
[1753734727238,0.60114001,117690.0,117680.0,1.54050868]
[1753734727742,0.60114001,117690.0,117680.0,1.21313634]
[1753734728043,0.60114001,117690.0,117680.0,1.18270719]
[1753734728251,0.60114001,117690.0,117680.0,1.15821719]
[1753734728450,0.92851235,117690.0,117680.0,1.15821719]
[1753734728656,0.60114001,117690.0,117680.0,1.15821719]
[1753734728949,0.60114001,117690.0,117680.0,1.18266719]
[1753734729151,0.25249001,117690.0,117680.0,1.51003953]
[1753734729346,0.08254331,117690.0,117680.0,1.51003953]
[1753734729554,0.25248981,117690.0,117680.0,1.51003953]
[1753734729843,0.03483331,117690.0,117680.0,1.51003953]
[1753734731951,0.03483331,117690.0,117680.0,1.54046868]
[1753734732153,0.20477931,117690.0,117680.0,1.21309634]
[1753734732351,0.25248931,117690.0,117680.0,1.54046868]
[1753734733051,0.25248931,117690.0,117680.0,0.84214868]
[1753734733248,0.25248931,117690.0,117680.0,1.54042868]
[1753734734052,0.25248931,117690.0,117680.0,0.84214868]
[1753734734352,0.92795165,117690.0,117680.0,1.45150634]
[1753734734553,0.92795165,117690.0,117680.0,0.41153424]
[1753734734749,0.92795165,117690.0,117680.0,0.33299882]
[1753734734949,0.92795165,117690.0,117680.0,0.98258882]
[1753734735250,0.92795165,117690.0,117680.0,1.15254892]
[1753734735648,0.92795165,117690.0,117680.0,0.98258882]
[1753734736249,0.92795165,117690.0,117680.0,1.15254892]
[1753734737556,0.92795165,117690.0,117680.0,1.19035892]
[1753734737756,0.92795165,117690.0,117680.0,1.26377892]
[1753734738154,0.60057931,117690.0,117680.0,1.26377892]
[1753734738458,0.92795165,117690.0,117680.0,1.26377892]
[1753734739255,0.60057931,117690.0,117680.0,1.2433701]
[1753734739455,0.60057931,117690.0,117680.0,1.3816801]
[1753734740160,0.92795165,117690.0,117680.0,1.3816801]
[1753734740352,0.92795165,117690.0,117680.0,1.1187801]
[1753734741150,0.92795165,117690.0,117680.0,0.4205001]
[1753734741356,0.92795165,117690.0,117680.0,1.1187801]
[1753734741856,0.92795165,117690.0,117680.0,0.4205001]
[1753734742062,0.92795165,117690.0,117680.0,1.1187801]
[1753734743067,0.92795165,117690.0,117680.0,0.4205001]
[1753734743365,0.92795165,117690.0,117680.0,1.1187801]
[1753734744668,0.92795165,117690.0,117680.0,0.4205001]
[1753734745273,0.92795165,117690.0,117680.0,1.1187801]
[1753734745477,0.92795165,117690.0,117680.0,1.13579282]
[1753734746680,0.92795165,117690.0,117680.0,0.43751282]
[1753734746974,0.92795165,117690.0,117680.0,1.13575282]
[1753734747175,0.92795165,117690.0,117680.0,0.43751282]
[1753734747475,0.92795165,117690.0,117680.0,1.13575282]
[1753734747774,0.92795165,117690.0,117680.0,0.43751282]
[1753734747975,0.92795165,117690.0,117680.0,1.13575282]
[1753734753081,0.92795165,117690.0,117680.0,1.16020282]
[1753734753378,0.92795165,117690.0,117680.0,1.13575282]
[1753734756276,0.03483331,117690.0,117680.0,1.46312516]
[1753734756481,0.03483331,117690.0,117680.0,1.48757516]
[1753734756679,0.03483331,117690.0,117680.0,0.78933516]
[1753734756875,0.08015331,117690.0,117680.0,1.49169516]
[1753734757776,0.08015331,117690.0,117680.0,1.49269516]
[1753734757975,0.08015331,117690.0,117680.0,1.49369516]
[1753734759480,0.08015331,117690.0,117680.0,1.49365516]
[1753734760680,0.08015331,117690.0,117680.0,1.49417516]
[1753734761579,0.35550331,117690.0,117680.0,0.46396282]
[1753734761786,0.92729925,117690.0,117680.0,0.43951282]
[1753734762082,0.92729925,117690.0,117680.0,1.14179282]
[1753734763285,0.42998331,117690.0,117680.0,1.16624282]
[1753734763486,0.24080331,117690.0,117680.0,1.49361516]
[1753734764085,0.03483331,117690.0,117680.0,1.49361516]
[1753734764987,0.3002039,117710.0,117700.0,0.2493292]
[1753734765177,0.4149039,117710.0,117700.0,1.0443992]
[1753734765377,0.65443303,117710.0,117700.0,1.06157602]
[1753734765575,0.70304303,117710.0,117700.0,1.06157602]
[1753734765884,0.77752303,117710.0,117700.0,1.06157602]
[1753734766084,0.70304303,117710.0,117700.0,1.06157602]
[1753734766286,0.77752303,117710.0,117700.0,1.06157602]
[1753734766583,0.77852303,117710.0,117700.0,1.06157602]
[1753734768283,0.73604183,117710.0,117700.0,1.06157602]
[1753734768783,0.66156183,117710.0,117700.0,1.06157602]
[1753734769187,0.66156183,117710.0,117700.0,1.10580439]
[1753734769589,0.73604183,117710.0,117700.0,1.10580439]
[1753734769787,0.73604183,117710.0,117700.0,1.08290358]
[1753734769988,0.38621183,117710.0,117700.0,1.08290358]
[1753734770183,0.50091183,117710.0,117700.0,1.10580439]
[1753734770388,0.61295183,117710.0,117700.0,1.10580439]
[1753734770890,0.73604183,117710.0,117700.0,1.10580439]
[1753734771391,0.73604183,117710.0,117700.0,1.08290358]
[1753734771591,0.66156183,117710.0,117700.0,1.08290358]
[1753734772288,0.61908303,117710.0,117700.0,1.08290358]
[1753734773092,0.61908303,117710.0,117700.0,1.41027592]
[1753734774093,0.61908303,117710.0,117700.0,1.08290358]
[1753734774497,0.61908303,117710.0,117700.0,1.10580439]
[1753734774694,0.61908303,117710.0,117700.0,1.10780439]
[1753734774993,0.68599303,117710.0,117700.0,1.10880439]
[1753734775194,0.12748913,117710.0,117700.0,1.10880439]
[1753734775386,0.66816239,117720.0,117710.0,0.3400596]
[1753734775685,0.66816239,117720.0,117710.0,0.36138716]
[1753734775889,0.60025239,117720.0,117710.0,0.36138716]
[1753734776389,0.66816239,117720.0,117710.0,0.36138716]
[1753734776890,0.03396196,117720.0,117710.0,0.36138716]
[1753734777086,0.08164196,117720.0,117710.0,0.71166031]
[1753734777288,0.08164196,117720.0,117710.0,0.71266031]
[1753734778086,0.03396196,117720.0,117710.0,0.6897595]
[1753734778287,0.01530997,117720.0,117710.0,0.71366031]
[1753734778795,0.01530997,117720.0,117710.0,0.88356431]
[1753734779592,0.6494586,117740.0,117730.0,0.340031]
[1753734779793,0.66474807,117740.0,117730.0,1.40527455]
[1753734780188,0.18516117,117740.0,117730.0,1.40527455]
[1753734780396,0.23284117,117740.0,117730.0,1.40527455]
[1753734780995,0.46197117,117740.0,117730.0,1.07790221]
[1753734781190,0.46297117,117740.0,117730.0,1.05657465]
[1753734782594,0.58081117,117740.0,117730.0,1.12557934]
[1753734784792,0.01628947,117740.0,117730.0,1.45295168]
[1753734785097,0.01628947,117740.0,117730.0,1.71585168]
[1753734786097,0.06396947,117740.0,117730.0,1.71585168]
[1753734786292,0.06396947,117740.0,117730.0,1.73707726]
[1753734786490,0.2185451,117740.0,117730.0,1.73707726]
[1753734786687,0.04868,117740.0,117730.0,1.73707726]
[1753734786892,0.2185451,117740.0,117730.0,1.73707726]
[1753734787099,0.2175451,117740.0,117730.0,1.73707726]
[1753734787295,0.2175451,117740.0,117730.0,1.73807726]
[1753734787595,4e-05,117750.0,117740.0,0.1698651]
[1753734787794,0.01530751,117750.0,117740.0,0.68861302]
[1753734788889,0.01530751,117750.0,117740.0,0.69061302]
[1753734789302,4e-05,117750.0,117740.0,0.69061302]
[1753734789602,0.04772,117750.0,117740.0,0.69061302]
[1753734789899,4e-05,117750.0,117740.0,0.69061302]
[1753734790095,0.01529613,117750.0,117740.0,0.69061302]
[1753734790401,4e-05,117750.0,117740.0,0.69061302]
[1753734790606,4e-05,117750.0,117740.0,0.95351302]
[1753734791299,0.04772,117750.0,117740.0,0.95351302]
[1753734792400,0.2175704,117750.0,117740.0,0.95351302]
[1753734793794,0.2175704,117750.0,117740.0,0.62614068]
[1753734794100,0.3340504,117750.0,117740.0,0.95351302]
[1753734794299,0.1642,117750.0,117740.0,0.95351302]
[1753734794506,4e-05,117750.0,117740.0,0.97641383]
[1753734795203,4e-05,117750.0,117740.0,0.95351302]
[1753734795394,4e-05,117750.0,117740.0,0.97625378]
[1753734795596,0.04772,117750.0,117740.0,0.97625378]
[1753734796302,0.2175703,117750.0,117740.0,0.97625378]
[1753734796696,0.5645403,117750.0,117740.0,0.97625378]
[1753734796900,0.5645403,117750.0,117740.0,1.67433378]
[1753734798105,0.16037,117750.0,117740.0,1.67433378]
[1753734798298,0.04772,117750.0,117740.0,1.67433378]
[1753734799106,0.04772,117750.0,117740.0,1.65159302]
[1753734799307,4e-05,117750.0,117740.0,1.65159302]
[1753734801701,4e-05,117750.0,117740.0,1.67434455]
[1753734801899,0.04772,117770.0,117760.0,0.99469048]
[1753734802102,0.04772,117770.0,117760.0,2.81958732]
[1753734802609,0.04772,117770.0,117760.0,2.84073969]
[1753734803211,0.04872,117770.0,117760.0,2.84073969]
[1753734804114,0.00104,117770.0,117760.0,2.84073969]
[1753734804616,0.04917,117770.0,117760.0,2.84073969]
[1753734804817,0.04917,117770.0,117760.0,2.84940782]
[1753734805607,0.00104,117770.0,117760.0,3.17678016]
[1753734805809,4e-05,117770.0,117760.0,3.17678016]
[1753734807423,4e-05,117770.0,117760.0,3.19953038]
[1753734808010,4e-05,117770.0,117760.0,3.17678016]
[1753734808320,0.0001,117780.0,117770.0,0.2511114]
[1753734808618,0.01540011,117780.0,117770.0,0.95897556]
[1753734809013,0.01540011,117780.0,117770.0,0.93780374]
[1753734809407,0.0001,117780.0,117770.0,0.95897326]
[1753734809609,0.0021,117780.0,117770.0,0.95897326]
[1753734810109,0.93898,117890.0,117770.0,0.95897326]
[1753734810110,0.3147261,117830.0,117820.0,0.1697493]
[1753734810311,0.62179703,117830.0,117820.0,0.91349519]
[1753734810520,0.40961883,117830.0,117820.0,1.24872753]
[1753734810721,0.40961883,117830.0,117820.0,1.34514753]
[1753734811616,0.40961883,117830.0,117820.0,1.32215753]
[1753734811819,0.40961883,117830.0,117820.0,1.34514753]
[1753734812020,0.40961883,117830.0,117820.0,0.55080753]
[1753734812222,0.40961883,117830.0,117820.0,0.99474519]
[1753734812614,0.41161883,117830.0,117820.0,1.32211753]
[1753734812814,0.41161883,117830.0,117820.0,1.34510753]
[1753734813318,0.33668883,117830.0,117820.0,1.34510753]
[1753734813616,0.33668883,117830.0,117820.0,1.35352072]
[1753734813820,0.06442883,117830.0,117820.0,1.42142248]
[1753734814123,0.06542883,117830.0,117820.0,1.42142248]
[1753734814616,0.01829883,117830.0,117820.0,1.42142248]
[1753734814822,0.003,117830.0,117820.0,1.42142248]
[1753734815020,0.002,117830.0,117820.0,1.42242248]
[1753734815718,0.002,117830.0,117820.0,1.44354516]
[1753734816217,0.002,117830.0,117820.0,1.67885062]
[1753734817419,0.04713,117840.0,117830.0,0.36431484]
[1753734817722,0.04713,117840.0,117830.0,0.69168718]
[1753734818223,0.39432,117840.0,117830.0,0.69168718]
[1753734818619,0.39432,117840.0,117830.0,0.66869718]
[1753734818824,0.72169234,117840.0,117830.0,0.88728484]
[1753734819124,0.73694359,117840.0,117830.0,0.88736484]
[1753734819523,0.72169234,117840.0,117830.0,0.88736484]
[1753734819820,0.73694004,117840.0,117830.0,0.88736484]
[1753734820025,0.73694018,117840.0,117830.0,0.01687004]
[1753734820223,0.73694018,117840.0,117830.0,0.71823004]
[1753734820425,0.90666058,117840.0,117830.0,0.73149804]
[1753734820822,1.3822202,117840.0,117830.0,0.03013804]
[1753734821025,0.1697494,117820.0,117810.0,1.19115351]
[1753734821223,0.94727336,117820.0,117810.0,1.89247351]
[1753734821421,0.94727336,117820.0,117810.0,2.06223731]
[1753734821725,0.5640694,117820.0,117810.0,2.06223731]
[1753734822228,0.57919608,117820.0,117810.0,2.13075852]
[1753734822527,0.57919608,117820.0,117810.0,0.25523852]
[1753734822825,0.57919608,117820.0,117810.0,1.06674852]
[1753734823217,0.58019608,117820.0,117810.0,1.06674852]
[1753734823622,0.58119608,117820.0,117810.0,1.06674852]
[1753734824227,0.58119608,117820.0,117810.0,1.14017852]
[1753734825028,0.58119608,117820.0,117810.0,1.52338248]
[1753734825522,0.38845608,117820.0,117810.0,1.52338248]
[1753734825723,0.002,117820.0,117810.0,1.54637248]
[1753734827524,0.01868102,117830.0,117820.0,0.3245188]
[1753734827727,0.01868102,117830.0,117820.0,1.17515276]
[1753734828025,0.04713,117840.0,117830.0,0.3245044]
[1753734828230,0.23193395,117840.0,117830.0,1.62979537]
[1753734828930,0.06221395,117840.0,117830.0,1.62979537]
[1753734829125,0.06221395,117840.0,117830.0,1.63079537]
[1753734831229,0.04713,117840.0,117830.0,1.63079537]
[1753734832333,0.04713,117840.0,117830.0,1.63179537]
[1753734832930,0.04713,117840.0,117830.0,1.64506229]
[1753734834234,0.04713,117840.0,117830.0,1.6664025]
[1753734834530,0.04713,117840.0,117830.0,1.64506229]
[1753734835229,0.04713,117840.0,117830.0,1.66640846]
[1753734836326,0.0621902,117840.0,117830.0,1.66640846]
[1753734837533,0.1726502,117840.0,117830.0,1.66456846]
[1753734837935,0.1726502,117840.0,117830.0,1.92746846]
[1753734838235,0.15759,117840.0,117830.0,1.92746846]
[1753734840336,0.17262819,117840.0,117830.0,1.95017001]
[1753734840835,0.17262819,117840.0,117830.0,1.93690309]
[1753734842725,0.17262819,117840.0,117830.0,1.55369913]
[1753734842932,0.20314819,117840.0,117830.0,1.88049821]
[1753734843130,0.20314819,117840.0,117830.0,1.18181821]
[1753734843337,0.20314819,117840.0,117830.0,1.85679666]
[1753734843634,0.20314819,117840.0,117830.0,1.87949821]
[1753734843943,0.20314819,117840.0,117830.0,1.61659821]
[1753734844334,0.61665727,117840.0,117830.0,1.24610758]
[1753734844535,0.72711727,117840.0,117830.0,1.24610758]
[1753734844840,0.40031819,117840.0,117830.0,1.24610758]
[1753734845343,0.57003819,117840.0,117830.0,1.24610758]
[1753734845748,0.57003819,117840.0,117830.0,1.07637318]
[1753734845749,0.89683727,117840.0,117830.0,1.07637318]
[1753734845943,0.89683727,117840.0,117830.0,0.73806318]
[1753734846144,0.89683727,117840.0,117830.0,0.72110617]
[1753734846849,0.89683727,117840.0,117830.0,0.83081617]
[1753734847050,0.89683727,117840.0,117830.0,0.02334617]
[1753734847242,1.31656527,117840.0,117830.0,0.72014617]
[1753734847446,1.31756527,117840.0,117830.0,0.6988]
[1753734847751,1.31756527,117840.0,117830.0,0.6978]
[1753734847955,0.5550579,117820.0,117810.0,0.34399472]
[1753734848145,0.89689517,117820.0,117810.0,1.30240887]
[1753734848451,0.57009609,117820.0,117810.0,1.30240887]
[1753734849045,0.57109609,117820.0,117810.0,1.30240887]
[1753734849954,0.57109609,117820.0,117810.0,1.62920795]
[1753734850146,0.57209609,117820.0,117810.0,1.62920795]
[1753734850345,0.57209609,117820.0,117810.0,0.93140795]
[1753734850554,0.57209609,117820.0,117810.0,1.62912795]
[1753734851655,0.57209609,117820.0,117810.0,1.65011795]
[1753734852563,0.57209609,117820.0,117810.0,1.62912795]
[1753734852949,0.57209609,117820.0,117810.0,0.93140795]
[1753734853148,0.57209609,117820.0,117810.0,1.62912795]
[1753734854254,0.57209609,117820.0,117810.0,1.6728195]
[1753734856057,0.57109609,117820.0,117810.0,1.6728195]
[1753734856956,0.5560579,117820.0,117810.0,1.6286861]
[1753734857153,0.57113289,117820.0,117810.0,1.67289952]
[1753734857550,0.01607499,117820.0,117810.0,1.67289952]
[1753734858053,0.001,117820.0,117810.0,1.87319393]
[1753734858257,0.01927501,117840.0,117830.0,0.5176634]
[1753734858456,0.0343466,117840.0,117830.0,1.56361125]
[1753734859153,0.2512254,117840.0,117830.0,1.56361125]
[1753734859949,0.2512254,117840.0,117830.0,0.86589125]
[1753734860357,0.5893754,117840.0,117830.0,1.54366125]
[1753734860552,0.5893754,117840.0,117830.0,1.1954334]
[1753734860756,0.5893754,117840.0,117830.0,1.2164234]
[1753734860959,0.2817454,117840.0,117830.0,1.56403799]
[1753734861555,0.2512254,117840.0,117830.0,1.56403799]
[1753734861859,0.2512254,117840.0,117830.0,1.56603799]
[1753734862253,0.2512254,117840.0,117830.0,1.56403799]
[1753734865858,0.5886254,117840.0,117830.0,0.84628799]
[1753734866160,0.5886254,117840.0,117830.0,1.54392799]
[1753734866360,0.5886254,117840.0,117830.0,1.56391799]
[1753734867157,0.5886254,117840.0,117830.0,0.86627799]
[1753734867361,0.91542448,117840.0,117830.0,0.02181551]
[1753734867558,0.91542448,117840.0,117830.0,1.11574781]
[1753734867762,0.5886254,117840.0,117830.0,1.11574781]
[1753734867964,0.5886254,117840.0,117830.0,0.52548781]
[1753734868156,0.5886254,117840.0,117830.0,1.22312781]
[1753734869167,0.5886254,117840.0,117830.0,0.52548781]
[1753734869361,0.5886254,117840.0,117830.0,1.22308781]
[1753734870259,0.58924638,117840.0,117830.0,1.24045357]
[1753734870463,0.25184638,117840.0,117830.0,1.58724265]
[1753734870659,0.39479638,117840.0,117830.0,1.58724265]
[1753734871259,0.28184638,117840.0,117830.0,1.58724265]
[1753734871462,0.25184638,117840.0,117830.0,1.58724265]
[1753734872166,0.25184638,117840.0,117830.0,0.88964265]
[1753734872569,0.25184638,117840.0,117830.0,1.58724265]
[1753734872967,0.03496758,117840.0,117830.0,1.58724265]
[1753734873357,0.03496758,117840.0,117830.0,1.85014265]
[1753734873962,0.03496758,117840.0,117830.0,1.91404173]
[1753734874158,0.03496758,117840.0,117830.0,1.58724265]
[1753734875269,0.01927501,117840.0,117830.0,1.61777706]
[1753734879271,0.01927501,117840.0,117830.0,1.88067706]
[1753734879472,0.01927501,117840.0,117830.0,1.55387798]
[1753734879669,0.17970213,117860.0,117850.0,0.2974937]
[1753734879873,0.30833035,117860.0,117850.0,1.51809784]
[1753734880077,0.30833035,117860.0,117850.0,1.53523509]
[1753734880973,0.35639035,117860.0,117850.0,1.53523509]
[1753734881175,0.35639035,117860.0,117850.0,1.54357605]
[1753734881476,0.35839035,117860.0,117850.0,1.54357605]
[1753734881773,0.35839035,117860.0,117850.0,1.21677697]
[1753734881975,0.35839035,117860.0,117850.0,1.54357605]
[1753734882175,0.43458035,117860.0,117850.0,1.54357605]
[1753734882376,0.50626035,117860.0,117850.0,1.54357605]
[1753734882575,0.50426035,117860.0,117850.0,1.54457605]
[1753734882776,0.50226035,117860.0,117850.0,1.53623509]
[1753734883379,0.50226063,117860.0,117850.0,1.53621338]
[1753734885478,0.50226063,117860.0,117850.0,1.53549338]
[1753734885874,0.50226063,117860.0,117850.0,1.2086943]
[1753734886074,0.99876372,117860.0,117850.0,0.71916335]
[1753734886774,1.24876372,117860.0,117850.0,0.02181562]
[1753734886975,0.15225,117840.0,117830.0,0.18708511]
[1753734887168,0.72529758,117840.0,117830.0,0.81816621]
[1753734887374,0.89501568,117840.0,117830.0,0.81816621]
[1753734887778,0.89501568,117840.0,117830.0,0.12080621]
[1753734888280,0.5682166,117840.0,117830.0,1.21622871]
[1753734888679,0.5682166,117840.0,117830.0,0.51886871]
[1753734888881,0.5682166,117840.0,117830.0,1.21622871]
[1753734889081,0.5692166,117840.0,117830.0,0.51886871]
[1753734889280,0.5692166,117840.0,117830.0,1.21622871]
[1753734891683,0.5692166,117840.0,117830.0,1.56555779]
[1753734891883,0.0626185,117840.0,117830.0,0.86819779]
[1753734892083,0.0166785,117840.0,117830.0,1.56555779]
[1753734893696,0.0166785,117840.0,117830.0,1.56755779]
[1753734894184,0.14961253,117860.0,117850.0,0.3265337]
[1753734894388,0.04585,117860.0,117850.0,1.53194278]
[1753734895186,0.04585,117860.0,117850.0,1.54878557]
[1753734895388,0.04685,117860.0,117850.0,1.54878557]
[1753734895888,0.04785,117860.0,117850.0,1.54878557]
[1753734896588,0.04685,117860.0,117850.0,1.54878557]
[1753734896788,0.15996,117860.0,117850.0,1.60482048]
[1753734897385,0.15896,117860.0,117850.0,1.60482048]
[1753734898188,0.19156,117860.0,117850.0,1.60482048]
[1753734898888,0.19156,117860.0,117850.0,1.62503362]
[1753734899794,0.04585,117860.0,117850.0,1.62503362]
[1753734900391,0.1306916,117870.0,117860.0,0.4852793]
[1753734900678,0.38138,117880.0,117870.0,0.507795]
[1753734900881,0.04589,117880.0,117870.0,1.62528936]
[1753734901994,0.04689,117880.0,117870.0,1.69288446]
[1753734902186,0.00204,117880.0,117870.0,1.69288446]
[1753734902487,0.04789,117880.0,117870.0,1.69288446]
[1753734903991,0.00204,117880.0,117870.0,1.69288446]
[1753734905894,0.00204,117880.0,117870.0,1.95578446]
[1753734906889,0.01833119,117880.0,117870.0,1.95578446]
[1753734907887,0.01833119,117880.0,117870.0,1.96412775]
[1753734908087,0.06418119,117880.0,117870.0,1.96412775]
[1753734909394,0.06318119,117880.0,117870.0,1.96512775]
[1753734910094,0.06218119,117880.0,117870.0,1.96712775]
[1753734910299,0.06216403,117880.0,117870.0,1.96712775]
[1753734911195,0.04589,117880.0,117870.0,1.96712775]
[1753734911791,0.04589,117880.0,117870.0,1.70422775]
[1753734916800,0.04589,117880.0,117870.0,1.64795177]
[1753734917696,0.04589,117880.0,117870.0,1.91085177]
[1753734918196,0.211531,117880.0,117870.0,0.69488876]
[1753734918392,0.72419901,117880.0,117870.0,0.84434968]
[1753734918591,0.72419901,117880.0,117870.0,1.3108638]
[1753734918900,0.397641,117880.0,117870.0,1.71079181]
[1753734919103,0.397641,117880.0,117870.0,1.73332181]
[1753734919700,0.397641,117880.0,117870.0,1.73132181]
[1753734919904,0.398641,117880.0,117870.0,1.03468181]
[1753734920103,0.398641,117880.0,117870.0,1.73128181]
[1753734920400,0.399641,117880.0,117870.0,1.37277639]
[1753734920901,0.399641,117880.0,117870.0,1.6993344]
[1753734921102,0.399641,117880.0,117870.0,1.39530639]
[1753734922598,0.214751,117880.0,117870.0,1.7218644]
[1753734922799,0.400771,117880.0,117870.0,1.7218644]
[1753734923402,0.018301,117880.0,117870.0,1.7218644]
[1753734923709,0.018301,117880.0,117870.0,1.4589644]
[1753734923710,0.068021,117880.0,117870.0,1.4589644]
[1753734924104,0.099501,117880.0,117870.0,1.47905829]
[1753734924306,0.328731,117880.0,117870.0,1.4589644]
[1753734924600,0.018301,117880.0,117870.0,1.47905901]
[1753734926605,0.017301,117880.0,117870.0,1.47905901]
[1753734926807,0.016301,117880.0,117870.0,1.47905901]
[1753734927208,0.016301,117880.0,117870.0,1.48205901]
[1753734929310,0.016301,117880.0,117870.0,1.48405901]
[1753734929609,0.016301,117880.0,117870.0,1.74695901]
[1753734929809,0.016301,117880.0,117870.0,1.77749342]
[1753734930110,4e-05,117880.0,117870.0,1.82327965]
[1753734930306,4e-05,117880.0,117870.0,1.77749342]
[1753734930501,0.45689895,117910.0,117900.0,0.4482619]
[1753734930704,0.41449115,117910.0,117900.0,1.49752185]
[1753734930911,0.21844855,117910.0,117900.0,1.49752185]
[1753734931304,0.06896855,117910.0,117900.0,1.49752185]
[1753734932211,0.10044855,117910.0,117900.0,1.49752185]
[1753734932410,0.21167855,117910.0,117900.0,1.49752185]
[1753734932710,0.32967855,117910.0,117900.0,1.49752185]
[1753734932911,0.40546855,117910.0,117900.0,1.49752185]
[1753734933305,0.33067855,117910.0,117900.0,1.49752185]
[1753734933505,0.21944855,117910.0,117900.0,1.49752185]
[1753734933710,0.22044855,117910.0,117900.0,1.49752185]
[1753734934212,0.15079855,117910.0,117900.0,1.49752185]
[1753734935309,0.07096855,117910.0,117900.0,1.49752185]
[1753734936618,0.02124855,117910.0,117900.0,1.49752185]
[1753734936920,0.02124855,117910.0,117900.0,2.67056185]
[1753734937503,0.0848971,117930.0,117920.0,0.2886232]
[1753734937815,0.0848971,117930.0,117920.0,1.46285464]
[1753734937816,0.0922174,117930.0,117920.0,1.46285464]
[1753734938110,0.3529274,117930.0,117920.0,1.46285464]
[1753734938318,0.4277174,117930.0,117920.0,1.46285464]
[1753734939109,0.2466974,117930.0,117920.0,1.46285464]
[1753734939419,0.3579274,117930.0,117920.0,1.46285464]
[1753734939613,0.4327174,117930.0,117920.0,1.46285464]
[1753734940318,0.4327174,117930.0,117920.0,1.13629663]
[1753734941822,0.4327174,117930.0,117920.0,0.27061343]
[1753734942014,0.75927541,117930.0,117920.0,0.01692343]
[1753734942218,0.75927541,117930.0,117920.0,0.71284343]
[1753734942419,0.77549404,117930.0,117920.0,0.96653343]
[1753734943412,0.77549404,117930.0,117920.0,0.71280343]
[1753734943612,0.94509404,117930.0,117920.0,0.71276343]
[1753734945519,0.94509404,117930.0,117920.0,0.01692343]
[1753734945719,0.94509404,117930.0,117920.0,0.71276343]
[1753734946425,0.94509404,117930.0,117920.0,0.08075343]
[1753734946822,0.94509404,117930.0,117920.0,0.77651343]
[1753734947026,0.94509404,117930.0,117920.0,0.08075343]
[1753734947223,0.94509404,117930.0,117920.0,0.77651343]
[1753734948435,0.94509404,117930.0,117920.0,0.84466343]
[1753734950029,0.94509404,117930.0,117920.0,0.89064343]
[1753734950628,0.77549404,117930.0,117920.0,0.89064343]